fUST/lending_fUST_20250927
["ID","MTS","AMOUNT","RATE_DAILY","PERIOD"]
[387947728,1758943831808,-1053.0,0.00032219,3]
[387947729,1758943831817,-3476.0,0.0003222,7]
[387947730,1758943831827,-187.30894371,0.000323,120]
[387947732,1758943831837,-3476.0,0.0003246,2]
[387947733,1758943831846,-187.30894371,0.000326,120]
[387947735,1758943831855,-162.814,0.000326,33]
[387947737,1758943831865,-180.74,0.000326,33]
[387947739,1758943831874,-13170.08849855,0.000326,2]
[387947785,1758943837895,-300.0,0.0003,2]
[387947787,1758943837905,-9800.62131757,0.000326,2]
[387947789,1758943837915,-785.12664582,0.00032681,2]
[387947791,1758943837924,-390.611828,0.00032736,30]
[387947793,1758943837933,-390.611828,0.00032736,30]
[387947795,1758943837943,-390.611828,0.00032736,30]
[387947797,1758943837952,-390.611828,0.00032736,30]
[387947799,1758943837961,-390.611828,0.00032736,30]
[387947801,1758943837970,-390.611828,0.00032736,30]
[387947803,1758943837979,-390.611828,0.00032736,30]
[387947805,1758943837988,-390.611828,0.00032736,30]
[387947807,1758943837997,-390.611828,0.00032736,30]
[387947809,1758943838006,-390.611828,0.00032736,30]
[387947811,1758943838016,-390.611828,0.00032736,30]
[387947813,1758943838025,-390.611828,0.00032736,30]
[387947815,1758943838034,-159.1835009,0.00032736,30]
[387947817,1758943838043,-132.23076371,0.00032752,2]
[387947819,1758943838052,-1254.42835158,0.00032752,2]
[387947821,1758943838061,-8146.19950386,0.00032752,2]
[387947823,1758943838071,-291.92728446,0.00032753,2]
[387947825,1758943838081,-332.57842606,0.00032753,2]
[387947827,1758943838090,-379.70954015,0.00032753,2]
[387947829,1758943838099,-365.31433116,0.00032753,2]
[387947831,1758943838108,-417.08459066,0.00032753,2]
[387947833,1758943838117,-254.30818987,0.00032781,3]
[387947835,1758943838126,-151.0,0.00032831,2]
[387947837,1758943838136,-500.0,0.00032831,2]
[387947839,1758943838146,-500.0,0.00032831,2]
[387947841,1758943838154,-523.08754274,0.00032831,2]
[387947843,1758943838163,-250.0,0.00032831,2]
[387947845,1758943838173,-250.0,0.00032831,2]
[387947847,1758943838182,-250.0,0.00032831,2]
[387947849,1758943838191,-250.0,0.00032831,2]
[387947851,1758943838200,-500.0,0.00032842,3]
[387947853,1758943838209,-166.39,0.00032842,3]
[387947855,1758943838218,-499.19,0.00032842,3]
[387947857,1758943838227,-731.2,0.00032842,10]
[387947859,1758943838236,-151.64425791,0.00032842,3]
[387947861,1758943838246,-151.93305351,0.00032842,3]
[387947863,1758943838255,-151.0,0.00032842,2]
[387947865,1758943838264,-151.0,0.00032842,3]
[387947867,1758943838272,-151.0,0.00032842,3]
[387947868,1758943838282,-151.0,0.00032842,3]
[387947870,1758943838291,-152.10436512,0.00032842,3]
[387947872,1758943838300,-247.04362986,0.00032842,3]
[387947874,1758943838310,-152.03059249,0.00032842,3]
[387947877,1758943838320,-151.90551112,0.00032842,3]
[387947879,1758943838329,-151.0,0.00032842,3]
[387947880,1758943838338,-151.44785783,0.00032842,3]
[387947882,1758943838348,-500.0,0.00032842,3]
[387947884,1758943838356,-152.02404313,0.00032842,3]
[387947886,1758943838365,-151.0,0.00032842,3]
[387947888,1758943838375,-299.27980241,0.00032842,3]
[387947890,1758943838384,-153.65506528,0.00032842,3]
[387947892,1758943838393,-152.41683478,0.00032842,3]
[387947894,1758943838402,-500.0,0.00032842,3]
[387947896,1758943838411,-500.0,0.00032842,3]
[387947898,1758943838421,-151.42718219,0.00032842,3]
[387947901,1758943838431,-1567.52247,0.00032851,2]
[387947903,1758943838440,-11808.9732091,0.00032851,2]
[387947904,1758943838449,-157.748,0.00032851,2]
[387947907,1758943838459,-200.0,0.00032851,10]
[387947909,1758943838468,-200.58178861,0.00032851,10]
[387947911,1758943838477,-202.18283777,0.00032851,10]
[387947913,1758943838487,-151.0,0.00032851,2]
[387947914,1758943838496,-152.8100736,0.00032852,20]
[387947916,1758943838506,-151.0,0.00032852,20]
[387947918,1758943838515,-153.16094079,0.00032852,20]
[387947920,1758943838524,-166.0,0.00032852,7]
[387947922,1758943838534,-157.43471499,0.00032852,7]
[387947924,1758943838543,-8937.76306712,0.00032852,2]
[387947926,1758943838552,-1686.26968124,0.00032852,60]
[387947928,1758943838561,-1219.49177716,0.00032852,60]
[387947930,1758943838571,-1069.98631161,0.00032852,60]
[387947933,1758943838581,-1738398.5318787,0.00032852,20]
[387948023,1758943839757,-857.60968199,0.00032752,2]
[387948025,1758943839766,-151.0,0.00032842,3]
[387948027,1758943839776,-151.0,0.00032842,3]
[387948029,1758943839785,-49781.7266324,0.00032852,20]
[387953838,1758943939941,834.3094557,0.00026296,2]
[387953839,1758944051570,2983.29593363,0.00026296,2]
[387953840,1758944059894,1069.98631161,0.00026296,2]
[387953841,1758944068382,1219.49177716,0.00026296,2]
[387953842,1758944076438,3054.55044712,0.00026296,2]
[387953843,1758944095172,-288.3355517,0.000263,2]
[387953844,1758944099182,1672.68553048,0.00026296,2]
[387953845,1758944099204,418.32292495,0.00026296,2]
[387953846,1758944099819,-11.6644483,0.000263,2]
[387953847,1758944107170,1614.13918828,0.00026296,2]
[387953848,1758944118326,150.0,0.00025,20]
[387953849,1758944123366,1266.30854895,0.00026296,2]
[387953850,1758944146755,1215.64820508,0.00026296,2]
[387953851,1758944169477,1215.65820508,0.00026296,2]
[387953852,1758944192321,1215.66820508,0.00026296,2]
[387953853,1758944216071,1215.67820508,0.00026296,2]
[387953854,1758944227614,1424.0,0.00026296,2]
[387953855,1758944253279,264.5865175,0.00026296,2]
[387953856,1758944253303,1149.68394396,0.00026296,2]
[387953859,1758944701435,-300.0,0.000263,2]
[387953860,1758944752090,-510.0,0.00031428,2]
[387953861,1758944752111,-155.0925707,0.00031629,2]
[387953862,1758944752133,-9.96981601,0.00031787,7]
[387953863,1758944752783,67.65737424,0.000263,2]
[387953864,1758944789643,2589.71221795,0.0002629,2]
[387953865,1758944808699,2504.0,0.0002,7]
[387953866,1758944815699,153.0,9e-07,2]
[387953867,1758944820216,269.7412961,0.00025205,2]
[387953868,1758944832089,-300.0,0.000263,2]
[387953869,1758944832111,-300.0,0.000263,2]
[387953870,1758944832133,-213.47710216,0.00031528,2]
[387953871,1758944832155,-607.49467094,0.00031628,28]
[387953872,1758944850114,-372.73468836,0.00031628,28]
[387953873,1758944850135,-324.44690592,0.00031787,7]
[387953874,1758944875106,188.9425578,0.000252,2]
[387953875,1758944880242,154.41378196,0.00025205,2]
[387953876,1758944899569,184.48611124,0.00026296,2]
[387953877,1758944932864,300.0,0.000252,2]
[387953878,1758944961083,-156.8,0.0003,120]
[387953879,1758945003154,1394.42392015,0.00026296,2]
[387953880,1758945003184,237.57607985,0.00026296,2]
[387953882,1758945032046,-34.049999,0.0003,120]
[387953883,1758945032056,-355.8089605,0.00031158,2]
[387953884,1758945032067,-175.58327807,0.00031787,7]
[387953885,1758945032077,-317.79105139,0.00031867,2]
[387953886,1758945032087,-187.3089437,0.00032,120]
[387953887,1758945032096,-296.9209673,0.00032051,30]
[387953888,1758945032105,-296.9209673,0.00032051,30]
[387953889,1758945032115,-296.9209673,0.00032078,30]
[387953890,1758945032124,-464.6704616,0.00032078,30]
[387953891,1758945032134,-187.3089437,0.000323,120]
[387953892,1758945032143,-400.0,0.00032729,2]
[387953893,1758945032155,-250.0,0.0003273,2]
[387953894,1758945032164,-250.0,0.0003273,2]
[387953895,1758945032174,-250.0,0.0003273,2]
[387953896,1758945032184,-250.0,0.0003273,2]
[387953897,1758945032193,-151.0,0.0003273,2]
[387953898,1758945032204,-500.0,0.00032748,2]
[387953899,1758945032216,-500.0,0.00032748,2]
[387953900,1758945032227,-180.741,0.00032748,33]
[387953901,1758945032237,-161.527,0.00032748,33]
[387953902,1758945032247,-182.9881309,0.00032748,2]
[387953903,1758945032256,-26999.95413917,0.00032749,2]
[387953904,1758945032265,-8146.19950386,0.0003275,2]
[387953905,1758945032275,-1540.2705168,0.0003275,2]
[387953906,1758945032285,-281.95,0.00032751,10]
[387953907,1758945032294,-169.06619224,0.00032753,2]
[387953908,1758945032303,-247.03,0.0003284,3]
[387953909,1758945032312,-163.83,0.0003284,3]
[387953910,1758945032321,-484.38386491,0.0003284,3]
[387953950,1758945038164,-500.0,0.0003273,2]
[387953952,1758945038173,-500.0,0.0003273,2]
[387953954,1758945038182,-523.08754274,0.0003273,2]
[387953956,1758945038191,-7.14613509,0.0003284,3]
[387953958,1758945038202,-731.2,0.0003284,10]
[387953960,1758945038212,-3070.0247098,0.00032846,2]
[387953962,1758945038221,-200.0,0.00032848,10]
[387953964,1758945038231,-160.91597898,0.00032849,10]
[387953966,1758945038240,-164.92,0.00032849,2]
[387953968,1758945038250,-549.7953289,0.00032849,30]
[387953970,1758945038259,-781.223656,0.00032849,30]
[387953972,1758945038268,-390.611828,0.00032849,30]
[387953974,1758945038278,-390.611828,0.00032849,30]
[387953976,1758945038287,-390.611828,0.00032849,30]
[387953978,1758945038297,-390.611828,0.00032849,30]
[387953980,1758945038307,-390.611828,0.00032849,30]
[387953982,1758945038316,-390.611828,0.00032849,30]
[387953984,1758945038325,-390.611828,0.00032849,30]
[387953986,1758945038334,-390.611828,0.00032849,30]
[387953988,1758945038343,-390.611828,0.00032849,30]
[387953990,1758945038352,-8937.76306712,0.0003285,2]
[387953992,1758945038361,-265.0,0.0003285,120]
[387953994,1758945038371,-1772723.08668266,0.0003285,20]
[387956122,1758945060130,150.0,0.000249,2]
[387956144,1758945060343,194.48,0.000253,2]
[387959477,1758945095580,320.0,0.00026296,2]
[387961605,1758945120951,319.99,0.00026296,2]
[387961865,1758945123923,501.70914659,0.000253,2]
[387962975,1758945143841,589.56799422,0.00026296,2]
[387962976,1758945402650,160.0,0.0002782,2]
[387962979,1758945462369,67.32182254,0.00025204,2]
[387962980,1758945462391,560.66258158,0.00025204,2]
[387962981,1758945603405,500.0,0.00025205,2]
[387962982,1758945603855,500.0,0.00025205,2]
[387962983,1758945723992,238.0,0.00026,2]
[387962985,1758945832637,300.0,0.00026,2]
[387962986,1758945845105,300.0,0.00026296,2]
[387962987,1758945943125,-196.93823211,0.000263,2]
[387962988,1758945943147,-204.62870398,0.000299,2]
[387962989,1758945943169,-157.62279583,0.0003011,15]
[387962990,1758945943189,-249.0,0.00030988,2]
[387962991,1758945943210,-121.45803885,0.00030988,2]
[387962993,1758945968915,248.89410337,0.00024822,14]
[387962995,1758946033086,-171.0,0.00028658,30]
[387962996,1758946033107,-200.5364501,0.00029381,30]
[387962997,1758946033128,-78.4635499,0.00030988,2]
[387962998,1758946050084,-155.06,0.0003011,15]
[387962999,1758946050104,-223.4335767,0.00030988,2]
[387963000,1758946054082,-98.1028734,0.00030988,2]
[387963001,1758946054104,-1200.0,0.00030988,2]
[387963002,1758946054125,-175.87238763,0.00030989,2]
[387963003,1758946054147,-175.87238763,0.00030989,2]
[387963004,1758946054167,-500.0,0.00030989,2]
[387963005,1758946054188,-213.08040307,0.00030989,2]
[387963006,1758946054211,-6.7062897,0.00030989,2]
[387963030,1758946148086,-165.4343832,0.00029993,120]
[387963031,1758946148107,-174.11170204,0.00030966,2]
[387963032,1758946148128,-493.2937103,0.00030989,2]
[387963033,1758946148149,-3309.52477176,0.0003099,2]
[387963034,1758946148169,-731.2,0.0003099,10]
[387963035,1758946148190,-9800.62131757,0.0003099,2]
[387963036,1758946148210,-161.528,0.00030999,28]
[387963037,1758946148230,-6472.57340786,0.00031,2]
[387963098,1758946232330,-217.07968389,0.00030966,2]
[387963100,1758946232340,-91.0196161,0.00030981,2]
[387963102,1758946232351,-117.49374499,0.00030981,2]
[387963103,1758946232360,-259.1,0.0003099,3]
[387963104,1758946232370,-777.33,0.0003099,3]
[387963106,1758946232379,-300.0,0.00030999,2]
[387963108,1758946232388,-3270.60239652,0.00031,2]
[387963156,1758946238179,-2985.56,0.00031,2]
[387963157,1758946238340,-159820.08275688,0.00031,2]
[387963158,1758946238351,-785.12664582,0.00031066,2]
[387963159,1758946238360,-1000.0,0.00031209,2]
[387963160,1758946238370,-1000.0,0.00031209,2]
[387963161,1758946238380,-500.0,0.00031209,2]
[387963162,1758946238390,-500.0,0.00031209,2]
[387963163,1758946238399,-523.08754274,0.00031209,2]
[387963164,1758946238409,-151.0,0.00031209,2]
[387963165,1758946238418,-217.07968387,0.00031858,2]
[387963166,1758946238428,-238.34328854,0.00031866,2]
[387963167,1758946238438,-390.611828,0.0003189,30]
[387963168,1758946238447,-390.611828,0.0003189,30]
[387963169,1758946238456,-390.611828,0.0003189,30]
[387963170,1758946238466,-390.611828,0.0003189,30]
[387963171,1758946238475,-390.611828,0.0003189,30]
[387963172,1758946238484,-1003.88652113,0.000319,5]
[387963173,1758946238494,-362.0,0.00031966,2]
[387963174,1758946238506,-151.0,0.000323,16]
[387963175,1758946238516,-328.34810595,0.00032346,7]
[387963176,1758946238525,-204.10997829,0.00032346,7]
[387963177,1758946238534,-518.2,0.0003236,3]
[387963178,1758946238544,-151.0,0.000325,15]
[387963179,1758946238553,-150.47,0.00032652,2]
[387963180,1758946238563,-151.0,0.000327,19]
[387963181,1758946238572,-1654.76238588,0.0003274,2]
[387963182,1758946238582,-217.07968387,0.00032749,2]
[387963183,1758946238591,-1696.64268066,0.0003275,2]
[387963184,1758946238600,-313.60708793,0.0003275,2]
[387963185,1758946238610,-313.60708789,0.0003275,2]
[387963186,1758946238619,-1696.64268065,0.00032751,2]
[387963187,1758946238629,-313.60708789,0.00032751,2]
[387963188,1758946238640,-313.60708789,0.00032751,2]
[387963189,1758946238650,-7331.57955342,0.00032751,2]
[387963190,1758946238660,-1696.64268065,0.00032751,2]
[387963191,1758946238673,-313.60708789,0.00032751,2]
[387963192,1758946238683,-279.16662727,0.00032752,2]
[387963193,1758946238693,-269.94715018,0.00032752,2]
[387963194,1758946238702,-495.79993002,0.00032752,2]
[387963195,1758946238712,-308.20251775,0.00032752,2]
[387963196,1758946238722,-151.0,0.000328,20]
[387963197,1758946238733,-151.0,0.000328,15]
[387963198,1758946238744,-162.41542007,0.00032831,2]
[387963199,1758946238755,-1654.76238588,0.00032841,2]
[387963200,1758946238765,-3070.0247098,0.00032847,2]
[387963201,1758946238776,-200.0,0.00032849,10]
[387963202,1758946238785,-202.18283777,0.00032849,10]
[387963203,1758946238795,-200.0,0.00032849,10]
[387963204,1758946238806,-151.93305351,0.00032849,30]
[387963205,1758946238816,-151.0,0.00032849,2]
[387963206,1758946238825,-151.0,0.00032849,30]
[387963207,1758946238834,-151.0,0.00032849,30]
[387963208,1758946238843,-151.0,0.00032849,30]
[387963209,1758946238855,-152.10436512,0.00032849,30]
[387963210,1758946238864,-247.04362986,0.00032849,30]
[387963211,1758946238873,-152.03059249,0.00032849,30]
[387963212,1758946238882,-151.90551112,0.00032849,30]
[387963213,1758946238892,-151.44785783,0.00032849,30]
[387963214,1758946238901,-500.0,0.00032849,30]
[387963215,1758946238910,-152.02404313,0.00032849,30]
[387963216,1758946238920,-151.64425791,0.00032849,30]
[387963217,1758946239121,-151.0,0.00032849,30]
[387963218,1758946239130,-500.0,0.00032849,30]
[387963219,1758946239139,-152.8100736,0.00032849,30]
[387963220,1758946239148,-151.0,0.00032849,30]
[387963221,1758946239157,-153.16094079,0.00032849,30]
[387963222,1758946239167,-160.91597898,0.00032849,10]
[387963223,1758946239176,-151.0,0.00032849,2]
[387963224,1758946239184,-390.611828,0.00032849,30]
[387963225,1758946239194,-390.611828,0.00032849,30]
[387963226,1758946239203,-390.611828,0.00032849,30]
[387963227,1758946239213,-390.611828,0.00032849,30]
[387963228,1758946239223,-390.611828,0.00032849,30]
[387963229,1758946239232,-390.611828,0.00032849,30]
[387963230,1758946239242,-159.1835009,0.00032849,30]
[387963231,1758946239251,-2443.58770032,0.0003285,60]
[387963232,1758946239261,-8937.76306712,0.0003285,2]
[387963233,1758946239270,-299.27980241,0.0003285,60]
[387963234,1758946239279,-153.65506528,0.0003285,60]
[387963235,1758946239288,-152.41683478,0.0003285,60]
[387963236,1758946239298,-500.0,0.0003285,60]
[387963237,1758946239307,-151.42718219,0.0003285,60]
[387963238,1758946239317,-151.62013985,0.0003285,60]
[387963239,1758946239326,-151.52510943,0.0003285,60]
[387963240,1758946239335,-333.62758493,0.0003285,7]
[387963241,1758946239344,-214439.44113778,0.0003285,20]
[387963242,1758946239354,-900.16377419,0.0003285,25]
[387963243,1758946239363,-616.5195758,0.0003285,2]
[387963244,1758946239372,-150.0,0.0003285,30]
[387963245,1758946239381,-1373998.70877696,0.0003285,20]
[387963246,1758946239396,-3497.4,0.0003285,20]
[387963675,1758946243900,-390.611828,0.0003189,30]
[387963677,1758946243910,-151.0,0.00032849,2]
[387963678,1758946243919,-218.67120861,0.00032849,30]
[387963680,1758946243928,-36449.01851452,0.0003285,20]
[387963683,1758946243939,-3449.74871688,0.0003285,20]
[387963886,1758946246107,-151.0,0.00032849,30]
[387963888,1758946246117,-15960.99999984,0.0003285,20]
[387963894,1758946246167,-1927.80139934,0.0003285,20]
[387963906,1758946246277,-216.55343378,0.00032849,30]
[387963908,1758946246286,-2992.94656622,0.0003285,20]
[387968766,1758946296932,315.0,0.00027014,22]
[387973863,1758946563842,364.64169477,0.000253,2]
[387973864,1758946568231,236.72565056,0.00026296,2]
[387973865,1758946576298,262.30419803,0.00026296,2]
[387973866,1758946582002,-227.32182254,0.000269,2]
[387973867,1758946597806,490.61,8.219e-05,2]
[387973868,1758946609632,157.0,0.00023178,9]
[387973877,1758946715191,304.85224945,0.0002629,2]
[387973878,1758946723610,342.8766926,0.00026296,2]
[387973879,1758946746351,317.52294003,0.00026296,2]
[387973882,1758946830521,160.0,0.0002,7]
[387973883,1758946831825,160.0,0.0002,7]
[387973884,1758946856661,351.47841322,0.00026296,2]
[387973885,1758946874909,217.0,9e-07,2]
[387973886,1758946876668,217.0,9e-07,2]
[387973887,1758946931515,804.24822905,0.00026296,2]
[387973888,1758946946247,-182.5258603,0.00026631,2]
[387973889,1758946961090,182.5258603,0.00026296,2]
[387973890,1758946981956,-122.22763497,0.00026631,2]
[387973891,1758946990877,246.55489664,0.00026296,2]
[387973894,1758947150083,-464.42903259,0.000269,2]
[387973895,1758947150107,-300.0,0.00026998,2]
[387973896,1758947150128,-287.0,0.00026998,2]
[387973897,1758947150148,-300.0,0.00026998,2]
[387973898,1758947150169,-500.0,0.00026999,2]
[387973899,1758947150191,-487.19963723,0.00026999,2]
[387973910,1758947190083,-12.80036277,0.00026999,2]
[387973911,1758947190108,-500.0,0.00026999,2]
[387973912,1758947190128,-501.80948246,0.00026999,2]
[387973913,1758947190148,-300.0,0.00026999,2]
[387973914,1758947190168,-300.0,0.00027,2]
[387973915,1758947190190,-300.0,0.00027,2]
[387973916,1758947190210,-300.0,0.00027,2]
[387973917,1758947190229,-159.59614655,0.00027,2]
[387973918,1758947225473,425.3168523,0.000203,2]
[387973919,1758947232096,-140.40385345,0.00027,2]
[387973920,1758947232122,-300.0,0.00027,2]
[387973921,1758947232149,-548.06077221,0.00028465,2]
[387973922,1758947232173,-300.0,0.0002972,2]
[387973923,1758947232197,-192.179274,0.00029721,2]
[387973924,1758947232223,-8652.35468567,0.00029721,2]
[387973925,1758947235656,157.0,0.00023205,9]
[387973929,1758947270579,600.0,0.00018,2]
[387973931,1758947274524,527.94578729,0.00018,2]
[387973932,1758947277134,440.80523467,0.00026296,2]
[387973933,1758947280241,269.73210003,0.00025205,2]
[387973934,1758947298587,1020.21416663,0.00025,2]
[387973937,1758947309374,356.55743892,0.00022,2]
[387973938,1758947315854,971.95566265,0.00025,2]
[387973939,1758947316556,1711.11752083,0.00024,2]
[387973940,1758947317956,668.58062011,0.00018,2]
[387973941,1758947319810,556.72031642,0.00022,7]
[387973943,1758947321452,163.3399967,0.00024,2]
[387973944,1758947323411,2130.72430345,0.000215,2]
[387973945,1758947323433,3371.32329481,0.000215,2]
[387973946,1758947323460,246.77944989,0.00023,2]
[387973947,1758947323663,458.79566688,0.00024,2]
[387973948,1758947323877,1000.0,0.000235,2]
[387973949,1758947325571,260.15199531,0.00015,2]
[387973950,1758947325852,150.13093871,0.00015,5]
[387973951,1758947329502,1231.14502443,0.00026296,2]
[387973952,1758947337472,979.83668945,0.00026296,2]
[387973953,1758947346143,572.83156897,0.00026296,2]
[387973954,1758947347072,-727.2298736,0.00028465,2]
[387973955,1758947368076,-4509.82311541,0.0002899,2]
[387973956,1758947368097,-150.40372041,0.000295,120]
[387973957,1758947368117,-300.0,0.00029719,2]
[387973958,1758947368137,-1200.0,0.0002972,2]
[387973959,1758947368158,-247.60865022,0.0002972,2]
[387973960,1758947368179,-192.97497214,0.0002972,2]
[387973961,1758947391245,166.16281314,0.00026296,2]
[387974002,1758947432375,-300.0,0.000299,2]
[387974004,1758947432384,-156.8,0.0003,60]
[387974006,1758947432393,-143.5621039,0.0003,2]
[387974008,1758947432404,-41.0143961,0.0003,2]
[387974010,1758947432414,-178.22,0.00030143,15]
[387974012,1758947432423,-400.0,0.00030242,2]
[387974014,1758947432432,-1250.0,0.00030242,2]
[387974015,1758947432441,-608.09684022,0.00030243,2]
[387974018,1758947432453,-7840.03028695,0.00030243,2]
[387974019,1758947432462,-178.22,0.00030243,15]
[387974021,1758947432472,-178.22,0.00030343,15]
[387974025,1758947432481,-178.22894149,0.00030443,15]
[387974027,1758947432490,-157.49654196,0.000307,2]
[387974030,1758947432500,-715.2607604,0.00030999,120]
[387974032,1758947432509,-194.682382,0.00031,30]
[387974034,1758947432518,-1000.0,0.00031134,30]
[387974035,1758947432528,-168.0,0.00031826,2]
[387974037,1758947432538,-390.611828,0.0003189,30]
[387974039,1758947432547,-390.611828,0.0003189,30]
[387974041,1758947432556,-390.611828,0.0003189,30]
[387974043,1758947432565,-390.611828,0.0003189,30]
[387974045,1758947432574,-390.611828,0.0003189,30]
[387974047,1758947432583,-390.611828,0.0003189,30]
[387974050,1758947432593,-160.0,0.00031892,2]
[387974053,1758947432602,-168.0,0.00031924,2]
[387974056,1758947432611,-159.1835009,0.00031941,30]
[387974059,1758947432621,-508.0,0.00031947,2]
[387974062,1758947432630,-168.0,0.00031966,2]
[387974063,1758947432639,-168.0,0.00031984,2]
[387974065,1758947432648,-177.28085603,0.00032,120]
[387974067,1758947432657,-585.42419672,0.00032,2]
[387974070,1758947432666,-400.0,0.00032041,3]
[387974072,1758947432675,-177.28085603,0.000323,120]
[387974073,1758947432684,-260.0,0.0003244,2]
[387974075,1758947432693,-168.0,0.00032513,2]
[387974076,1758947432702,-168.0,0.00032578,2]
[387974077,1758947432712,-161.52824605,0.00032578,33]
[387974078,1758947432721,-560.0,0.00032586,2]
[387974079,1758947432730,-177.28085603,0.000326,120]
[387974080,1758947432740,-912.43564108,0.0003265,2]
[387974081,1758947432751,-808.65966565,0.00032663,2]
[387974082,1758947432761,-302.51602579,0.0003272,30]
[387974083,1758947432770,-260.08290545,0.00032741,2]
[387974084,1758947432779,-18637.1390492,0.00032742,2]
[387974085,1758947432789,-1105.06658941,0.0003275,2]
[387974086,1758947432798,-500.0,0.00032751,15]
[387974087,1758947432807,-500.0,0.00032751,15]
[387974088,1758947432816,-500.0,0.00032751,15]
[387974089,1758947432826,-500.0,0.00032751,15]
[387974090,1758947432835,-443.58770032,0.00032751,15]
[387974091,1758947432844,-83320.39589104,0.00032752,2]
[387974092,1758947432856,-399.70554934,0.00032752,2]
[387974093,1758947432867,-12949.37282761,0.00032752,2]
[387974094,1758947432876,-174.12,0.00032774,3]
[387974095,1758947432885,-522.37,0.00032774,3]
[387974096,1758947432894,-500.0,0.00032782,2]
[387974097,1758947432903,-473.36069294,0.00032782,2]
[387974098,1758947432912,-7174.58356087,0.00032782,2]
[387974099,1758947432922,-178.40850472,0.00032784,2]
[387974100,1758947432931,-4373.4391169,0.00032784,2]
[387974101,1758947432940,-18637.1390492,0.00032839,2]
[387974102,1758947432949,-10628.611905,0.00032848,2]
[387974103,1758947432959,-3070.0247098,0.00032849,2]
[387974104,1758947432968,-454.03641683,0.00032849,30]
[387974105,1758947432979,-45.96358317,0.00032849,30]
[387974106,1758947432989,-151.0,0.00032849,30]
[387974107,1758947432998,-151.0,0.00032849,30]
[387974108,1758947433007,-100.81870126,0.00032849,30]
[387974109,1758947433062,-50.18129874,0.00032849,30]
[387974110,1758947433071,-151.0,0.00032849,30]
[387974111,1758947433081,-152.10436512,0.00032849,30]
[387974112,1758947433090,-247.04362986,0.00032849,30]
[387974113,1758947433100,-152.03059249,0.00032849,30]
[387974114,1758947433109,-151.90551112,0.00032849,30]
[387974115,1758947433119,-151.0,0.00032849,30]
[387974116,1758947433128,-151.44785783,0.00032849,30]
[387974117,1758947433138,-500.0,0.00032849,30]
[387974118,1758947433148,-151.0,0.00032849,30]
[387974119,1758947433157,-152.02404313,0.00032849,30]
[387974120,1758947433166,-151.64425791,0.00032849,30]
[387974121,1758947433176,-153.54923032,0.00032849,30]
[387974122,1758947433185,-500.0,0.00032849,2]
[387974123,1758947433195,-151.0,0.00032849,30]
[387974124,1758947433204,-151.0,0.00032849,30]
[387974125,1758947433213,-200.0,0.00032849,10]
[387974126,1758947433222,-200.0,0.00032849,10]
[387974127,1758947433231,-200.58178861,0.00032851,10]
[387974128,1758947433241,-151.62013985,0.00032851,2]
[387974129,1758947433250,-151.52510943,0.00032851,2]
[387974130,1758947433262,-157.75553463,0.00032852,7]
[387974131,1758947433277,-333.62758493,0.00032852,7]
[387974132,1758947433286,-166.0,0.00032852,7]
[387974133,1758947433296,-166.0,0.00032852,7]
[387974134,1758947433306,-200.0,0.0003287,2]
[387974135,1758947433315,-200.0,0.0003287,3]
[387974136,1758947433325,-357.0437385,0.00032873,5]
[387974137,1758947433334,-274.97301225,0.00032873,5]
[387974138,1758947433344,-500.7913327,0.00032873,5]
[387974139,1758947433354,-336.14506797,0.00032873,5]
[387974140,1758947433364,-501.79499806,0.00032873,5]
[387974141,1758947433374,-500.0,0.00032873,5]